fUSD/lending_fUSD_20240214
["ID","MTS","AMOUNT","RATE_DAILY","PERIOD"]
[314014635,1707923542303,-500.0,0.00040273,7]
[314014636,1707923542312,-943.16,0.00040273,7]
[314014637,1707923542322,-644.22,0.00040273,7]
[314014638,1707923542331,-1264.92,0.00040273,7]
[314014639,1707923542340,-704.7,0.00040273,7]
[314014640,1707923542349,-1136.26,0.00040273,7]
[314014641,1707923542359,-570.14,0.00040273,7]
[314014642,1707923542368,-812.61,0.00040273,7]
[314014643,1707923542377,-500.0,0.00040273,7]
[314014644,1707923542386,-553.03,0.00040273,7]
[314014645,1707923542553,-519.06,0.00040273,7]
[314014646,1707923542562,-733.41,0.00040273,7]
[314014647,1707923542572,-1130.05,0.00040273,7]
[314014648,1707923542581,-674.48,0.00040273,7]
[314014649,1707923542590,-599.48,0.00040273,7]
[314014650,1707923542600,-699.45,0.00040273,7]
[314014651,1707923542609,-808.31,0.00040273,7]
[314014652,1707923542618,-647.83,0.00040273,7]
[314014653,1707923542627,-1377.65,0.00040273,7]
[314014654,1707923542636,-734.76,0.00040273,7]
[314014655,1707923542645,-1574.35,0.00040273,7]
[314014656,1707923542655,-1145.4,0.00040273,7]
[314014657,1707923542665,-1361.9,0.00040273,7]
[314014658,1707923542678,-207.68693404,0.00040273,7]
[314014659,1707923542692,-500.0,0.00040273,7]
[314014660,1707923542702,-500.0,0.00040273,7]
[314014661,1707923542710,-1000.98,0.00040273,7]
[314014662,1707923542719,-940.65,0.00040273,7]
[314014663,1707923542728,-819.39,0.00040273,7]
[314014664,1707923542737,-664.33,0.00040273,7]
[314014665,1707923542746,-574.43,0.00040273,7]
[314014666,1707923542755,-582.92,0.00040273,7]
[314014667,1707923542764,-500.0,0.00040273,7]
[314014668,1707923542774,-709.41,0.00040273,7]
[314014669,1707923542784,-523.78,0.00040273,7]
[314014670,1707923542793,-584.12,0.00040273,7]
[314014671,1707923542802,-629.64,0.00040273,7]
[314014672,1707923542812,-549.4,0.00040273,7]
[314014673,1707923542821,-1007.67,0.00040273,7]
[314014674,1707923542830,-2090.09,0.00040273,7]
[314014675,1707923542839,-964.24,0.00040273,7]
[314014676,1707923542848,-500.0,0.00040273,7]
[314014677,1707923542858,-500.0,0.00040273,7]
[314014678,1707923542867,-633.52,0.00040273,7]
[314014679,1707923542876,-349.83723003,0.00040273,7]
[314014680,1707923542886,-500.0,0.00040273,7]
[314014681,1707923542897,-1464.25,0.00040273,7]
[314014682,1707923542906,-1470.37,0.00040273,7]
[314014683,1707923542915,-500.0,0.00040273,7]
[314014684,1707923542927,-608.25,0.00040273,7]
[314014685,1707923542937,-760.6,0.00040273,7]
[314014686,1707923542946,-500.0,0.00040273,7]
[314014687,1707923542955,-547.73,0.00040273,7]
[314014688,1707923542964,-1725.04,0.00040273,7]
[314014689,1707923542978,-554.39,0.00040273,7]
[314014690,1707923542988,-1351.58,0.00040273,7]
[314014691,1707923542996,-638.35,0.00040273,7]
[314014692,1707923543006,-500.0,0.00040273,7]
[314014693,1707923543017,-974.92,0.00040273,7]
[314014694,1707923543026,-619.45,0.00040273,7]
[314014695,1707923543035,-855.82,0.00040273,7]
[314014696,1707923543045,-500.0,0.00040273,7]
[314014697,1707923543054,-1157.75,0.00040273,7]
[314014698,1707923543065,-896.42,0.00040273,2]
[314014699,1707923543077,-500.0,0.00040273,7]
[314014700,1707923543087,-500.0,0.00040273,7]
[314014701,1707923543096,-500.0,0.00040273,7]
[314014702,1707923543106,-544.41,0.00040273,7]
[314014703,1707923543115,-586.61,0.00040273,7]
[314014704,1707923543125,-500.0,0.00040273,20]
[314014705,1707923543134,-863.99,0.00040273,7]
[314014706,1707923543144,-500.0,0.00040273,7]
[314014707,1707923543154,-969.91,0.00040273,7]
[314014708,1707923543164,-500.0,0.00040273,7]
[314014709,1707923543176,-500.0,0.00040273,7]
[314014710,1707923543185,-597.96,0.00040273,2]
[314014711,1707923543195,-1237.52,0.00040273,7]
[314014712,1707923543204,-535.67484608,0.00040273,7]
[314014713,1707923543213,-500.0,0.00040273,7]
[314014714,1707923543222,-686.48,0.00040273,7]
[314014715,1707923543232,-500.0,0.00040273,7]
[314014716,1707923543244,-500.0,0.00040273,7]
[314014717,1707923543254,-500.0,0.00040273,7]
[314014718,1707923543263,-633.51,0.00040273,7]
[314014719,1707923543272,-1310.86,0.00040273,7]
[314014720,1707923543282,-500.0,0.00040273,7]
[314014721,1707923543292,-646.21,0.00040273,7]
[314014722,1707923543301,-643.81,0.00040273,7]
[314014723,1707923543311,-500.0,0.00040273,7]
[314014724,1707923543321,-632.83,0.00040273,7]
[314014725,1707923543332,-1166.74,0.00040273,7]
[314014726,1707923543341,-500.0,0.00040273,7]
[314014727,1707923543350,-500.0,0.00040273,7]
[314014728,1707923543359,-500.0,0.00040273,7]
[314014729,1707923543369,-778.72,0.00040273,7]
[314014730,1707923543378,-537.19,0.00040273,7]
[314014731,1707923543387,-522.92,0.00040273,7]
[314014732,1707923543396,-500.0,0.00040273,7]
[314014733,1707923543405,-839.23,0.00040273,7]
[314014734,1707923543415,-500.0,0.00040273,7]
[314014735,1707923543429,-540.0,0.00040273,7]
[314014736,1707923543438,-500.0,0.00040273,7]
[314014737,1707923543447,-500.0,0.00040273,7]
[314014738,1707923543457,-860.82,0.00040273,7]
[314014739,1707923543466,-710.26,0.00040273,7]
[314014740,1707923543475,-500.0,0.00040273,7]
[314014741,1707923543484,-330.90718321,0.00040273,7]
[314014742,1707923543493,-594.3,0.00040273,7]
[314014743,1707923543502,-1376.8,0.00040273,7]
[314014744,1707923543511,-563.0,0.00040273,7]
[314014745,1707923543521,-689.41,0.00040273,7]
[314014746,1707923543531,-1735.17,0.00040273,7]
[314014747,1707923543541,-1292.66,0.00040273,7]
[314014748,1707923543551,-2576.99,0.00040273,7]
[314014749,1707923543560,-500.0,0.00040273,7]
[314014750,1707923543569,-500.0,0.00040273,7]
[314014751,1707923543578,-1880.82,0.00040273,7]
[314014752,1707923543588,-551.14,0.00040273,7]
[314014753,1707923543597,-1420.44,0.00040273,7]
[314014754,1707923543606,-713.29,0.00040273,7]
[314014755,1707923543615,-1306.77,0.00040273,7]
[314014756,1707923543625,-865.48,0.00040273,7]
[314014757,1707923543634,-500.0,0.00040273,7]
[314014758,1707923543643,-798.43,0.00040273,7]
[314014759,1707923543652,-792.44,0.00040273,7]
[314014760,1707923543661,-1762.73,0.00040273,7]
[314014761,1707923543671,-500.0,0.00040273,7]
[314014762,1707923543685,-566.85,0.00040273,7]
[314014763,1707923543694,-234.10320237,0.00040273,7]
[314014764,1707923543703,-616.16,0.00040273,7]
[314014765,1707923543712,-500.0,0.00040273,7]
[314014766,1707923543721,-500.0,0.00040273,7]
[314014767,1707923543730,-721.07,0.00040273,7]
[314014768,1707923543745,-500.0,0.00040273,7]
[314014769,1707923543767,-501.48,0.00040273,7]
[314014770,1707923543785,-1882.77,0.00040273,7]
[314014771,1707923543805,-804.17,0.00040273,7]
[314014772,1707923543823,-500.0,0.00040273,7]
[314014773,1707923543841,-1538.55,0.00040273,7]
[314014774,1707923543860,-500.0,0.00040273,7]
[314014775,1707923543875,-500.0,0.00040273,7]
[314014776,1707923543896,-747.44,0.00040273,7]
[314014777,1707923543914,-500.0,0.00040273,7]
[314014778,1707923543935,-1390.73,0.00040273,7]
[314014779,1707923543956,-1109.74,0.00040273,7]
[314014780,1707923543970,-632.23,0.00040273,7]
[314014781,1707923543987,-500.0,0.00040273,7]
[314014782,1707923544008,-886.7,0.00040273,7]
[314014783,1707923544026,-500.0,0.00040273,7]
[314014784,1707923544042,-385.13225315,0.00040273,7]
[314014785,1707923544059,-582.6,0.00040273,7]
[314014786,1707923544076,-500.0,0.00040273,2]
[314014787,1707923544094,-500.0,0.00040273,7]
[314014788,1707923544110,-500.0,0.00040273,7]
[314014789,1707923544127,-631.42,0.00040273,7]
[314014790,1707923544143,-1281.5,0.00040273,7]
[314014791,1707923544159,-500.0,0.00040273,7]
[314014792,1707923544176,-500.0,0.00040273,7]
[314014793,1707923544192,-1512.4,0.00040273,7]
[314014794,1707923544207,-669.64,0.00040273,7]
[314014795,1707923544224,-500.0,0.00040273,7]
[314014796,1707923544239,-2645.87,0.00040273,7]
[314014797,1707923544254,-500.0,0.00040273,7]
[314014798,1707923544269,-649.97,0.00040273,7]
[314014799,1707923544284,-9592.87,0.00040273,7]
[314014800,1707923544299,-6589.39,0.00040273,7]
[314014801,1707923544314,-537.36,0.00040273,7]
[314014802,1707923544329,-500.0,0.00040273,7]
[314014803,1707923544346,-1074.08,0.00040273,7]
[314014804,1707923544362,-712.86,0.00040273,7]
[314014805,1707923544378,-10349.22,0.00040273,7]
[314014806,1707923544393,-500.0,0.00040273,7]
[314014807,1707923544408,-2138.7,0.00040273,7]
[314014808,1707923544422,-2522.18,0.00040273,7]
[314014809,1707923544439,-494.22559715,0.00040273,7]
[314014810,1707923544455,-1253.86,0.00040273,7]
[314014811,1707923544470,-500.0,0.00040273,7]
[314014812,1707923544486,-617.22,0.00040273,7]
[314014813,1707923544500,-775.14,0.00040273,7]
[314014814,1707923544516,-5438.42,0.00040273,7]
[314014815,1707923544531,-5792.28,0.00040273,7]
[314014816,1707923544546,-1042.95,0.00040273,7]
[314014817,1707923544562,-500.0,0.00040273,7]
[314014818,1707923544577,-1101.1,0.00040273,7]
[314014819,1707923544592,-1305.25,0.00040273,7]
[314014820,1707923544607,-1375.63,0.00040273,7]
[314014821,1707923544622,-500.0,0.00040273,7]
[314014822,1707923544637,-1710.63,0.00040273,7]
[314014823,1707923544652,-3610.33,0.00040273,7]
[314014824,1707923544667,-1942.7,0.00040273,7]
[314014825,1707923544683,-656.71,0.00040273,7]
[314014826,1707923544698,-500.0,0.00040273,7]
[314014827,1707923544713,-508.16,0.00040273,7]
[314014828,1707923544728,-500.0,0.00040273,7]
[314014829,1707923544742,-500.0,0.00040273,7]
[314014830,1707923544757,-13119.1,0.00040273,7]
[314014831,1707923544772,-2795.61,0.00040273,7]
[314014832,1707923544786,-4841.93,0.00040273,7]
[314014833,1707923544801,-789.06,0.00040273,7]
[314014834,1707923544815,-1486.36,0.00040273,7]
[314014835,1707923544829,-3238.15,0.00040273,7]
[314014836,1707923544844,-1122.77,0.00040273,7]
[314014837,1707923544858,-805.46,0.00040273,7]
[314014838,1707923544872,-5897.47,0.00040273,7]
[314014839,1707923544887,-664.49,0.00040273,7]
[314014840,1707923544900,-1313.77,0.00040273,7]
[314014841,1707923544915,-500.0,0.00040273,7]
[314014842,1707923544931,-574.19,0.00040273,7]
[314014843,1707923544945,-11522.74,0.00040273,7]
[314014844,1707923544960,-500.0,0.00040273,7]
[314014845,1707923544976,-1290.94,0.00040273,7]
[314014846,1707923545001,-520.12,0.00040273,7]
[314014847,1707923545036,-1511.05,0.00040273,7]
[314014848,1707923545051,-879.95,0.00040273,7]
[314014849,1707923545065,-6267.83,0.00040273,7]
[314014850,1707923545081,-2830.38,0.00040273,7]
[314014851,1707923545095,-763.78,0.00040273,7]
[314014852,1707923545109,-1371.91,0.00040273,7]
[314014853,1707923545123,-626.07,0.00040273,7]
[314014854,1707923545139,-546.46510115,0.00040273,7]
[314014855,1707923545153,-4425.6,0.00040273,7]
[314014856,1707923545168,-420.98566801,0.00040273,7]
[314014857,1707923545185,-500.0,0.00040273,7]
[314014858,1707923545199,-986.33,0.00040273,7]
[314014859,1707923545218,-45639.2,0.00040273,7]
[314014860,1707923545232,-5389.09,0.00040273,7]
[314014861,1707923545246,-1240.03,0.00040273,7]
[314014862,1707923545261,-500.0,0.00040273,7]
[314014863,1707923545276,-558.68,0.00040273,7]
[314014864,1707923545290,-4636.49,0.00040273,7]
[314014865,1707923545304,-255.4905493,0.00040273,7]
[314014866,1707923545319,-5227.83,0.00040273,7]
[314014867,1707923545333,-525.56,0.00040273,7]
[314014868,1707923545347,-2461.93,0.00040273,7]
[314014869,1707923545362,-682.43,0.00040273,7]
[314014870,1707923545376,-1031.1,0.00040273,7]
[314014871,1707923545391,-1060.11,0.00040273,7]
[314014872,1707923545406,-3757.3,0.00040273,7]
[314014873,1707923545420,-741.06,0.00040273,7]
[314014874,1707923545438,-777.41,0.00040273,7]
[314014875,1707923545452,-838.79,0.00040273,7]
[314014876,1707923545467,-1479.6,0.00040273,7]
[314014877,1707923545482,-866.09,0.00040273,7]
[314014878,1707923545495,-3315.92,0.00040273,7]
[314014879,1707923545510,-8419.92,0.00040273,7]
[314014880,1707923545525,-1669.6,0.00040273,7]
[314014881,1707923545540,-500.0,0.00040273,7]
[314014882,1707923545554,-1425.19,0.00040273,7]
[314014883,1707923545568,-500.0,0.00040273,7]
[314014884,1707923545584,-941.92,0.00040273,7]
[314014885,1707923545599,-1068.3,0.00040273,7]
[314014886,1707923545614,-978.39,0.00040273,7]
[314014887,1707923545868,-1743.01,0.00040273,7]
[314014888,1707923545895,-500.0,0.00040273,7]
[314014889,1707923545912,-527.53,0.00040273,7]
[314014890,1707923545922,-5014.41,0.00040273,7]
[314014891,1707923545934,-2618.16,0.00040273,7]
[314014892,1707923545944,-16404.96,0.00040273,7]
[314014893,1707923545953,-1253.74,0.00040273,7]
[314014894,1707923545963,-1428.29,0.00040273,7]
[314014895,1707923545974,-12919.21,0.00040273,7]
[314014896,1707923545984,-725.51,0.00040273,7]
[314014897,1707923545997,-500.0,0.00040273,7]
[314014898,1707923546007,-670.32,0.00040273,7]
[314014899,1707923546016,-564.17,0.00040273,7]
[314014900,1707923546026,-608.21,0.00040273,7]
[314014901,1707923546037,-3982.22,0.00040273,7]
[314014902,1707923546048,-309.85391066,0.00040273,7]
[314014903,1707923546059,-15886.12,0.00040273,7]
[314014904,1707923546071,-2293.57,0.00040273,7]
[314014905,1707923546081,-1912.2,0.00040273,7]
[314014906,1707923546091,-1078.52,0.00040273,7]
[314014907,1707923546100,-1675.86,0.00040273,7]
[314014908,1707923546109,-4682.24,0.00040273,7]
[314014909,1707923546118,-998.25,0.00040273,7]
[314014910,1707923546128,-500.0,0.00040273,7]
[314014911,1707923546138,-1548.99,0.00040273,7]
[314014912,1707923546147,-1678.3,0.00040273,7]
[314014913,1707923546157,-2172.47,0.00040273,7]
[314014914,1707923546166,-4636.94,0.00040273,7]
[314014915,1707923546179,-905.58,0.00040273,7]
[314014916,1707923546189,-3347.59,0.00040273,7]
[314014917,1707923546199,-24853.72,0.00040273,7]
[314014918,1707923546208,-2682.03,0.00040273,7]
[314014919,1707923546218,-500.0,0.00040273,7]
[314014920,1707923546227,-741.23,0.00040273,7]
[314014921,1707923546236,-504.17,0.00040273,7]
[314014922,1707923546245,-4661.42,0.00040273,7]
[314014923,1707923546255,-644.02,0.00040273,7]
[314014924,1707923546265,-1447.91,0.00040273,7]
[314014925,1707923546274,-870.17,0.00040273,7]
[314014926,1707923546285,-575.73,0.00040273,2]
[314014927,1707923546294,-6063.47,0.00040273,7]
[314014928,1707923546304,-513.51,0.00040273,7]
[314014929,1707923546314,-13772.64,0.00040273,7]
[314014930,1707923546324,-734.67,0.00040273,7]
[314014931,1707923546334,-861.53,0.00040273,7]
[314014932,1707923546343,-4963.65,0.00040273,7]
[314014933,1707923546353,-4015.51,0.00040273,7]
[314014934,1707923546363,-1647.66,0.00040273,7]
[314014935,1707923546372,-500.0,0.00040273,7]
[314014936,1707923546382,-834.17,0.00040273,7]
[314014937,1707923546391,-1651.62,0.00040273,7]
[314014938,1707923546401,-1367.71,0.00040273,7]
[314014939,1707923546410,-705.01,0.00040273,7]
[314014940,1707923546419,-738.43,0.00040273,7]
[314014941,1707923546430,-500.0,0.00040273,7]
[314014942,1707923546439,-1605.94,0.00040273,7]
[314014943,1707923546448,-2624.93,0.00040273,7]
[314014944,1707923546457,-1232.76,0.00040273,7]
[314014945,1707923546466,-1397.98,0.00040273,7]
[314014946,1707923546475,-6303.05,0.00040273,7]
[314014947,1707923546484,-3882.2,0.00040273,7]
[314014948,1707923546493,-1424.26,0.00040273,7]
[314014949,1707923546502,-6796.38,0.00040273,7]
[314014950,1707923546511,-500.0,0.00040273,7]
[314014951,1707923546520,-1430.04,0.00040273,7]
[314014952,1707923546528,-9115.46,0.00040273,7]
[314014953,1707923546537,-876.71,0.00040273,7]
[314014954,1707923546546,-6722.84,0.00040273,7]
[314014955,1707923546556,-1159.69,0.00040273,7]
[314014956,1707923546565,-1566.04,0.00040273,7]
[314014957,1707923546575,-5625.73,0.00040273,7]
[314014958,1707923546584,-742.15,0.00040273,7]
[314014959,1707923546594,-500.0,0.00040273,7]
[314014960,1707923546603,-1074.84,0.00040273,7]
[314014961,1707923546613,-500.0,0.00040273,7]
[314014962,1707923546622,-21955.42,0.00040273,7]
[314014963,1707923546631,-1224.55,0.00040273,7]
[314014964,1707923546640,-10536.73,0.00040273,7]
[314014965,1707923546649,-3349.17,0.00040273,7]
[314014966,1707923546658,-1141.82,0.00040273,7]
[314014967,1707923546668,-4103.23,0.00040273,7]
[314014968,1707923546680,-15646.43,0.00040273,7]
[314014969,1707923546689,-500.0,0.00040273,7]
[314014970,1707923546698,-580.0,0.00040273,7]
[314014971,1707923546707,-888.9,0.00040273,7]
[314014972,1707923546716,-849.7,0.00040273,7]
[314014973,1707923546725,-1131.16,0.00040273,7]
[314014974,1707923546734,-500.0,0.00040273,7]
[314014975,1707923546743,-970.39,0.00040273,7]
[314014976,1707923546752,-1000.0,0.00040273,30]
[314014977,1707923546761,-2458.64,0.00040273,7]
[314014978,1707923546771,-1032.81,0.00040273,7]
[314014979,1707923546780,-940.22,0.00040273,7]
[314014980,1707923546790,-845.63,0.00040273,7]
[314014981,1707923546799,-655.93,0.00040273,7]
[314014982,1707923546808,-2020.71,0.00040273,7]
[314014983,1707923546817,-861.05,0.00040273,7]
[314014984,1707923546826,-1868.07,0.00040273,7]
[314014985,1707923546835,-4353.77,0.00040273,7]
[314014986,1707923546845,-2136.24,0.00040273,7]
[314014987,1707923546854,-500.0,0.00040273,7]
[314014988,1707923546864,-3468.32,0.00040273,7]
[314014989,1707923546874,-1175.69,0.00040273,7]
[314014990,1707923546883,-4307.44,0.00040273,7]
[314014991,1707923546893,-2131.96,0.00040273,7]
[314014992,1707923546902,-4133.28,0.00040273,7]
[314014993,1707923546911,-3754.14,0.00040273,7]
[314014994,1707923546921,-500.0,0.00040273,7]
[314014995,1707923546936,-1200.28,0.00040273,7]
[314014996,1707923546946,-551.94,0.00040273,7]
[314014997,1707923546955,-1428.62,0.00040273,7]
[314014998,1707923546964,-2643.73,0.00040273,7]
[314014999,1707923546974,-1293.93,0.00040273,7]
[314015000,1707923546984,-4255.94,0.00040273,7]
[314015001,1707923546994,-500.0,0.00040273,7]
[314015002,1707923547003,-1073.43,0.00040273,7]
[314015003,1707923547012,-1154.7,0.00040273,7]
[314015004,1707923547021,-500.0,0.00040273,7]
[314015005,1707923547030,-1681.08,0.00040273,7]
[314015006,1707923547040,-749.27,0.00040273,7]
[314015007,1707923547051,-696.07,0.00040273,7]
[314015008,1707923547063,-1992.67,0.00040273,7]
[314015009,1707923547074,-1960.66,0.00040273,7]
[314015010,1707923547084,-4598.11,0.00040273,7]
[314015011,1707923547093,-2148.61,0.00040273,7]
[314015012,1707923547103,-776.5,0.00040273,7]
[314015013,1707923547113,-876.47,0.00040273,7]
[314015014,1707923547122,-759.83,0.00040273,7]
[314015015,1707923547131,-1863.83,0.00040273,7]
[314015016,1707923547140,-907.63,0.00040273,7]
[314015017,1707923547150,-22229.37,0.00040273,7]
[314015018,1707923547160,-2233.48,0.00040273,7]
[314015019,1707923547170,-500.0,0.00040273,7]
[314015020,1707923547183,-1407.78,0.00040273,7]
[314015021,1707923547192,-2807.7,0.00040273,7]
[314015022,1707923547201,-500.0,0.00040273,7]
[314015023,1707923547211,-749.48,0.00040273,7]
[314015024,1707923547221,-500.0,0.00040273,7]
[314015025,1707923547230,-770.43,0.00040273,7]
[314015026,1707923547240,-4409.87,0.00040273,7]
[314015027,1707923547250,-940.66,0.00040273,7]
[314015028,1707923547260,-1582.96,0.00040273,7]
[314015029,1707923547274,-778.24,0.00040273,7]
[314015030,1707923547284,-819.98,0.00040273,7]
[314015031,1707923547294,-501.61,0.00040273,7]
[314015032,1707923547303,-1689.02,0.00040273,7]
[314015033,1707923547313,-239.29468169,0.00040278,30]
[314015034,1707923547323,-150.0,0.00040286,3]
[314015035,1707923547333,-150.0,0.00040286,3]
[314015036,1707923547342,-154.65466196,0.00040295,30]
[314015037,1707923547352,-235.13880492,0.00040297,30]
[314015038,1707923547361,-700.0,0.000403,15]
[314015039,1707923547371,-156.61267287,0.00040303,30]
[314015040,1707923547380,-657.90689477,0.00040313,30]
[314015041,1707923547390,-235.13880492,0.00040327,30]
[314015042,1707923547399,-150.0,0.00040328,7]
[314015043,1707923547408,-354.81402348,0.0004035,30]
[314015044,1707923547418,-358.85958455,0.00040359,30]
[314015045,1707923547429,-354.81402348,0.00040364,30]
[314015046,1707923547438,-154.03006511,0.00040381,30]
[314015047,1707923547447,-161.42546737,0.00040384,30]
[314015048,1707923547456,-166.66666666,0.00040399,30]
[314015049,1707923547465,-5159.21632891,0.000404,7]
[314015050,1707923547475,-4747.07087907,0.00040402,2]
[314015051,1707923547484,-604.0,0.00040406,7]
[314015052,1707923547494,-155.43902418,0.0004041,30]
[314015053,1707923547503,-239.29468169,0.00040435,30]
[314015054,1707923547512,-358.85958455,0.00040444,30]
[314015055,1707923547522,-155.96258335,0.00040447,30]
[314015056,1707923547532,-151.021419,0.00040448,19]
[314015057,1707923547541,-154.68938908,0.00040449,30]
[314015058,1707923547551,-151.44662462,0.00040451,30]
[314015059,1707923547560,-235.13880492,0.00040457,30]
[314015060,1707923547569,-150.0,0.00040463,7]
[314015061,1707923547578,-358.85958455,0.00040466,30]
[314015062,1707923547587,-354.81402348,0.00040466,30]
[314015063,1707923547597,-150.0,0.00040474,3]
[314015064,1707923547606,-150.0,0.00040474,3]
[314015065,1707923547615,-446.81137707,0.000405,2]
[314015066,1707923547624,-2110.0,0.000405,15]
[314015067,1707923547634,-3312.13,0.000405,7]
[314015068,1707923547643,-157.0252244,0.00040503,30]
[314015069,1707923547652,-170.50544823,0.00040534,30]
[314015070,1707923547662,-657.90689477,0.00040538,30]
[314015071,1707923547671,-150.0,0.00040542,2]
[314015072,1707923547683,-150.0,0.00040542,2]
[314015073,1707923547692,-150.0,0.00040542,2]
[314015074,1707923547701,-150.0,0.00040542,2]
[314015075,1707923547710,-150.0,0.00040542,2]
[314015076,1707923547719,-150.0,0.00040542,2]
[314015077,1707923547728,-150.0,0.00040542,2]
[314015078,1707923547738,-500.0,0.00040547,7]
[314015079,1707923547747,-500.0,0.00040547,7]
[314015080,1707923547757,-500.0,0.00040547,7]
[314015081,1707923547766,-281.37753495,0.00040547,7]
[314015082,1707923547775,-500.0,0.00040547,7]
[314015083,1707923547785,-500.0,0.00040547,7]
[314015084,1707923547794,-636.47,0.00040547,7]
[314015085,1707923547803,-476.66516154,0.00040547,7]
[314015086,1707923547813,-500.0,0.00040547,7]
[314015087,1707923547822,-500.0,0.00040547,7]
[314015088,1707923547832,-500.0,0.00040547,7]
[314015089,1707923547841,-500.0,0.00040547,7]
[314015090,1707923547850,-500.0,0.00040547,7]
[314015091,1707923547860,-500.0,0.00040547,7]
[314015092,1707923547869,-536.83,0.00040547,7]
[314015093,1707923547878,-511.55,0.00040547,7]
[314015094,1707923547888,-564.0,0.00040547,7]
[314015095,1707923547897,-500.0,0.00040547,7]
[314015096,1707923547907,-500.0,0.00040547,7]
[314015097,1707923547916,-1240.83,0.00040547,7]
[314015098,1707923547928,-500.0,0.00040547,7]
[314015099,1707923547937,-1171.11,0.00040547,7]
[314015100,1707923547947,-564.08,0.00040547,7]
[314015101,1707923547956,-1281.17,0.00040547,7]
[314015102,1707923547965,-1147.23,0.00040547,7]
[314015103,1707923547976,-500.0,0.00040547,7]
[314015104,1707923547986,-568.35,0.00040547,7]
[314015105,1707923547998,-1433.14,0.00040547,7]
[314015106,1707923548008,-530.02,0.00040547,7]
[314015107,1707923548018,-528.29,0.00040547,7]
[314015108,1707923548027,-1489.83,0.00040547,7]
[314015109,1707923548038,-1024.97,0.00040547,7]
[314015110,1707923548047,-569.56,0.00040547,7]
[314015111,1707923548057,-785.09,0.00040547,7]
[314015112,1707923548068,-1152.13,0.00040547,7]
[314015113,1707923548077,-1376.22,0.00040547,2]
[314015114,1707923548086,-500.0,0.00040547,7]
[314015115,1707923548096,-770.95,0.00040547,7]
[314015116,1707923548107,-1599.92,0.00040547,7]
[314015117,1707923548117,-1153.23,0.00040547,7]
[314015118,1707923548126,-500.0,0.00040547,7]
[314015119,1707923548135,-1045.09,0.00040547,7]
[314015120,1707923548145,-774.56,0.00040547,7]
[314015121,1707923548155,-1031.35,0.00040547,7]
[314015122,1707923548165,-548.76,0.00040547,7]
[314015123,1707923548176,-500.0,0.00040547,7]
[314015124,1707923548186,-661.87,0.00040547,7]
[314015125,1707923548195,-500.0,0.00040547,7]
[314015126,1707923548205,-584.37,0.00040547,7]
[314015127,1707923548214,-520.1,0.00040547,7]
[314015128,1707923548224,-344.96947925,0.00040547,7]
[314015129,1707923548233,-1604.0,0.00040547,7]
[314015130,1707923548242,-500.0,0.00040547,7]
[314015131,1707923548252,-943.16,0.00040547,7]
[314015132,1707923548261,-644.22,0.00040547,7]
[314015133,1707923548271,-1264.92,0.00040547,7]
[314015134,1707923548280,-704.7,0.00040547,7]